[Event "Go-Makkah Chess Festival 2019"]
[Site "Sousse"]
[Date "2019.09.08"]
[Round "9.2"]
[White "Miezis, Normunds"]
[Black "Rian, Saad"]
[Result "1-0"]
[ECO "A36"]
[WhiteElo "2486"]
[BlackElo "2100"]
[Annotator "RC"]
[PlyCount "125"]
[EventDate "2019.09.02"]
[EventType "swiss"]
[EventCountry "TUN"]
[SourceTitle "playchess.com"]
[Source "ChessBase"]
[SourceQuality "1"]
[TimeControl "5400+30"]

1. c4 {[%emt 0:00:00]} e6 {[%emt 0:04:34]} 2. e4 {[%emt 0:00:15]} c5 {[%emt 0:00:29]} 3. Nc3 {[%emt 0:00:35]} Nc6 {[%emt 0:00:44]} 4. g3 {[%emt 0:00:40]} g6 {[%emt 0:00:35]} 5. Bg2 {[%emt 0:00:22]} Bg7 {[%emt 0:00:17]} 6. Nge2 {[%emt 0:00:28]} Nge7 {[%emt 0:00:44]} 7. d3 {[%emt 0:00:18]} O-O {[%emt 0:00:35]} 8. h4 {[%emt 0:00:42]} Nd4 {[%emt 0:00:52]} 9. Rb1 {[%emt 0:02:53]} d5 {[%emt 0:02:50]} 10. exd5 {[%emt 0:05:15]} exd5 {[%emt 0:00:19]} 11. Nxd4 {[%emt 0:00:26]} cxd4 {[%emt 0:00:25]} 12. Nxd5 {[%emt 0:00:27]} Nxd5 {[%emt 0:00:30]} 13. Bxd5 {[%emt 0:00:11]} Qa5+ {[%emt 0:00:55]} 14. Bd2 {[%emt 0:03:25]} Re8+ {[%emt 0:01:13]} 15. Kf1 {[%emt 0:00:15]} Qxa2 {[%emt 0:00:41]} 16. Kg2 {[%emt 0:00:13]} Qa6 {[%emt 0:02:01]} 17. h5 {[%emt 0:03:37]} Be6 {[%emt 0:01:06]} 18. Bf3 {[%emt 0:00:28]} Bd7 {[%emt 0:01:40]} 19. Ra1 {[%emt 0:03:09]} Qb6 {[%emt 0:01:04]} 20. b4 {[%emt 0:02:22]} Bc6 {[%emt 0:01:31]} 21. b5 {[%emt 0:02:57]} Bxf3+ {[%emt 0:02:06]} 22. Qxf3 {[%emt 0:00:09]} Qc7 {[%emt 0:06:13]} 23. h6 {[%emt 0:03:17]} Bf8 {[%emt 0:02:35]} 24. Rhe1 {[%emt 0:01:48]} b6 {[%emt 0:02:13]} 25. Bf4 {[%emt 0:00:43]} Qd7 {[%emt 0:01:37]} 26. Be5 {[%emt 0:01:26]} Qf5 {[%emt 0:02:54]} 27. Qxf5 {[%emt 0:01:36]} gxf5 {[%emt 0:01:18]} 28. Bf4 {[%emt 0:00:23]} Rxe1 {[%emt 0:02:54]} 29. Rxe1 {[%emt 0:00:21]} f6 {[%emt 0:00:34]} 30. Re6 {[%emt 0:00:29]} Kf7 {[%emt 0:00:29]} 31. Rc6 {[%emt 0:00:17]} Re8 {[%emt 0:05:59]} 32. Kf3 {[%emt 0:01:10]} Kg6 {[%emt 0:00:44]} 33. Rc7 {[%emt 0:00:49]} Re7 {[%emt 0:01:27]} 34. Rc8 {[%emt 0:00:31]} Bxh6 {[%emt 0:00:16]} 35. Rd8 {[%emt 0:01:10]} Bxf4 {[%emt 0:00:26]} 36. Kxf4 {[%emt 0:00:57]} a5 {[%emt 0:03:24]} 37. bxa6 {[%emt 0:01:37]} Ra7 {[%emt 0:00:06]} 38. Rxd4 {[%emt 0:01:44]} Rxa6 {[%emt 0:00:04]} 39. Rd6 {[%emt 0:02:21]} Ra3 {[%emt 0:01:44]} 40. Ke3 {[%emt 0:00:21]} Rb3 {[%emt 0:00:32]} 41. Rd8 {[%emt 0:01:20]} h5 {[%emt 0:03:56]} 42. Rb8 {[%emt 0:01:42]} Rb4 {[%emt 0:00:27]} 43. f4 {[%emt 0:00:55]} Kf7 {[%emt 0:03:37]} 44. Kd4 {[%emt 0:00:26]} Rb3 {[%emt 0:01:32]} 45. Rb7+ {[%emt 0:01:19]} Ke6 {[%emt 0:03:43]} 46. Rb8 {[%emt 0:05:25]} Kf7 {[%emt 0:07:11]} 47. Ke3 {[%emt 0:01:37]} Ke6 {[%emt 0:05:58]} 48. c5 {[%emt 0:04:07]} b5 {[%emt 0:00:11]} 49. Rb6+ {[%emt 0:01:22]} Kf7 {[%emt 0:02:25]} 50. Kd4 {[%emt 0:01:18]} Ke7 {[%emt 0:01:20]} 51. Rd6 {[%emt 0:07:08]} Ra3 {[%emt 0:03:33]} 52. Rd5 {[%emt 0:01:15]} Ke6 {[%emt 0:01:49]} 53. c6 {[%emt 0:02:58]} Ra7 {[%emt 0:08:33]} 54. Kc5 {[%emt 0:03:10]} b4 {[%emt 0:00:32]} 55. Rd8 {[%emt 0:02:47]} b3 {[%emt 0:01:25]} 56. Re8+ {[%emt 0:00:18]} Kf7 {[%emt 0:00:33]} 57. Rb8 {[%emt 0:00:22]} Ra3 {[%emt 0:01:59]} 58. d4 {[%emt 0:01:36]} Ke7 {[%emt 0:03:06]} 59. Rb7+ {[%emt 0:00:11]} Kd8 {[%emt 0:00:44]} 60. Kd6 {[%emt 0:00:15]} Kc8 {[%emt 0:00:26]} 61. d5 {[%emt 0:00:16]} b2 {[%emt 0:01:26]} 62. Rxb2 {[%emt 0:00:12]} Rxg3 {[%emt 0:00:17]} 63. c7 {[%emt 0:00:39]} 1-0

[Event "Go-Makkah Chess Festival 2019"]
[Site "Sousse"]
[Date "2019.09.08"]
[Round "9.3"]
[White "Kjartansson, David"]
[Black "Ezat, Mohamed"]
[Result "1/2-1/2"]
[ECO "B13"]
[WhiteElo "2401"]
[BlackElo "2458"]
[Annotator "ChessBase"]
[PlyCount "116"]
[EventDate "2019.09.02"]
[EventType "swiss"]
[EventCountry "TUN"]
[SourceTitle "playchess.com"]
[Source "ChessBase"]
[SourceQuality "1"]
[TimeControl "5400+30"]

1. d4 {[%emt 0:07:15]} Nf6 {[%emt 0:00:00]} 2. Nc3 {[%emt 0:00:17]} d5 {[%emt 0:00:34]} 3. Bf4 {[%emt 0:00:08]} c5 {[%emt 0:08:32]} 4. e3 {[%emt 0:00:23]} cxd4 {[%emt 0:00:06]} 5. exd4 {[%emt 0:00:05]} a6 {[%emt 0:00:08]} 6. Nf3 {[%emt 0:00:11]} Bg4 {[%emt 0:00:08]} 7. h3 {[%emt 0:00:34]} Bxf3 {[%emt 0:00:08]} 8. Qxf3 {[%emt 0:00:07]} Nc6 {[%emt 0:00:08]} 9. O-O-O {[%emt 0:06:16]} e6 {[%emt 0:09:32]} 10. g4 {[%emt 0:03:49]} Bb4 {[%emt 0:00:36]} 11. a3 {[%emt 0:00:27]} Be7 {[%emt 0:08:46]} 12. g5 {[%emt 0:01:36]} Nd7 {[%emt 0:00:08]} 13. h4 {[%emt 0:00:16]} b5 {[%emt 0:00:13]} 14. Nxd5 {[%emt 0:03:12]} exd5 {[%emt 0:01:09]} 15. Qxd5 {[%emt 0:00:17]} Na5 {[%emt 0:30:38]} 16. Bh3 {[%emt 0:14:05]} Ra7 {[%emt 0:18:40]} 17. h5 {[%emt 0:14:58]} Nc4 {[%emt 0:00:22]} 18. g6 {[%emt 0:02:04]} O-O {[%emt 0:02:34]} 19. gxf7+ {[%emt 0:04:18]} Rxf7 {[%emt 0:06:46]} 20. Be6 {[%emt 0:03:36]} Qf8 {[%emt 0:00:13]} 21. h6 {[%emt 0:05:25]} g6 {[%emt 0:05:05]} 22. Rhe1 {[%emt 0:04:30]} Nf6 {[%emt 0:03:12]} 23. Qc6 {[%emt 0:02:28]} Bxa3 {[%emt 0:01:27]} 24. Rd3 {[%emt 0:13:44]} Qb4 {[%emt 0:01:57]} 25. Qc8+ {[%emt 0:00:31]} Qf8 {[%emt 0:00:08]} 26. bxa3 {[%emt 0:02:14]} Qxc8 {[%emt 0:00:02]} 27. Bxc8 {[%emt 0:00:07]} Nd7 {[%emt 0:01:38]} 28. Bg3 {[%emt 0:03:03]} Ncb6 {[%emt 0:00:12]} 29. Rc3 {[%emt 0:02:56]} Nxc8 {[%emt 0:00:42]} 30. Rxc8+ {[%emt 0:01:41]} Rf8 {[%emt 0:00:01]} 31. Rc6 {[%emt 0:00:54]} Rf6 {[%emt 0:01:03]} 32. d5 {[%emt 0:00:44]} Kf7 {[%emt 0:00:20]} 33. d6 {[%emt 0:00:33]} Re6 {[%emt 0:00:25]} 34. Rd1 {[%emt 0:01:00]} Ra8 {[%emt 0:00:44]} 35. Rc7 {[%emt 0:00:29]} Ke8 {[%emt 0:00:01]} 36. Rd3 {[%emt 0:01:32]} g5 {[%emt 0:00:11]} 37. Rd5 {[%emt 0:01:08]} Rg6 {[%emt 0:00:25]} 38. Kd2 {[%emt 0:00:36]} Kf7 {[%emt 0:01:18]} 39. Rd3 {[%emt 0:00:24]} Rd8 {[%emt 0:00:25]} 40. f4 {[%emt 0:00:47]} Kf6 {[%emt 0:00:46]} 41. Rd4 {[%emt 0:00:19]} Ke6 {[%emt 0:00:25]} 42. fxg5 {[%emt 0:00:57]} Rxg5 {[%emt 0:00:01]} 43. Bh4 {[%emt 0:00:25]} Rg2+ {[%emt 0:00:01]} 44. Kc1 {[%emt 0:00:15]} Rf8 {[%emt 0:00:17]} 45. Be7 {[%emt 0:00:48]} Rf1+ {[%emt 0:01:43]} 46. Kb2 {[%emt 0:00:07]} Rff2 {[%emt 0:00:31]} 47. Rd3 {[%emt 0:00:51]} Re2 {[%emt 0:00:12]} 48. Rcc3 {[%emt 0:01:00]} Rh2 {[%emt 0:00:56]} 49. Rc6 {[%emt 0:00:32]} Ne5 {[%emt 0:00:27]} 50. Rdc3 {[%emt 0:00:34]} Nxc6 {[%emt 0:00:21]} 51. Rxc6 {[%emt 0:00:03]} a5 {[%emt 0:00:29]} 52. Rc5 {[%emt 0:00:52]} b4 {[%emt 0:00:17]} 53. axb4 {[%emt 0:00:20]} axb4 {[%emt 0:00:00]} 54. Rc4 {[%emt 0:00:11]} Rxh6 {[%emt 0:01:23]} 55. Rxb4 {[%emt 0:00:05]} Rhh2 {[%emt 0:00:29]} 56. Rc4 {[%emt 0:00:07]} h5 {[%emt 0:00:28]} 57. Kb3 {[%emt 0:00:09]} h4 {[%emt 0:00:35]} 58. Bxh4 {[%emt 0:00:55]} Rxc2 {[%emt 0:00:21]} 1/2-1/2

[Event "Go-Makkah Chess Festival 2019"]
[Site "Sousse"]
[Date "2019.09.08"]
[Round "9.4"]
[White "Romero Holmes, Alfonso"]
[Black "Rian, Moubarak"]
[Result "1/2-1/2"]
[ECO "A33"]
[WhiteElo "2414"]
[BlackElo "2048"]
[Annotator "NA"]
[PlyCount "22"]
[EventDate "2019.09.02"]
[EventType "swiss"]
[EventCountry "TUN"]
[SourceTitle "playchess.com"]
[Source "ChessBase"]
[SourceQuality "1"]
[TimeControl "5400+30"]

1. d4 {[%emt 0:05:40]} Nf6 {[%emt 0:00:00]} 2. Nf3 {[%emt 0:00:07]} e6 {[%emt 0:00:00]} 3. g3 {[%emt 0:00:09]} c5 {[%emt 0:00:40]} 4. Bg2 {[%emt 0:00:08]} cxd4 {[%emt 0:00:32]} 5. O-O {[%emt 0:00:22]} Nc6 {[%emt 0:00:07]} 6. Nxd4 {[%emt 0:00:08]} Bc5 {[%emt 0:02:02]} 7. Nb3 {[%emt 0:01:00]} Be7 {[%emt 0:00:35]} 8. c4 {[%emt 0:00:40]} O-O {[%emt 0:00:35]} 9. Nc3 {[%emt 0:00:31]} Na5 {[%emt 0:03:28]} 10. Nxa5 {[%emt 0:03:54]} Qxa5 {[%emt 0:00:03]} 11. Bd2 {[%emt 0:00:23]} Qc7 {[%emt 0:02:13]} 1/2-1/2

[Event "Go-Makkah Chess Festival 2019"]
[Site "Sousse"]
[Date "2019.09.08"]
[Round "9.7"]
[White "Ahmed AlRehily"]
[Black "Bouzidi, Ahmed"]
[Result "0-1"]
[ECO "B53"]
[WhiteElo "1827"]
[BlackElo "2197"]
[Annotator "ChessBase"]
[PlyCount "56"]
[EventDate "2019.09.02"]
[EventType "swiss"]
[EventCountry "TUN"]
[SourceTitle "playchess.com"]
[Source "ChessBase"]
[SourceQuality "1"]
[TimeControl "5400+30"]

1. e4 {[%emt 0:08:00]} c5 {[%emt 0:02:32]} 2. Nf3 {[%emt 0:00:13]} d6 {[%emt 0:00:05]} 3. d4 {[%emt 0:00:04]} cxd4 {[%emt 0:00:07]} 4. Qxd4 {[%emt 0:00:07]} a6 {[%emt 0:01:01]} 5. h3 {[%emt 0:00:23]} Nc6 {[%emt 0:00:10]} 6. Qe3 {[%emt 0:00:40]} Nf6 {[%emt 0:01:51]} 7. c4 {[%emt 0:03:25]} g6 {[%emt 0:03:49]} 8. Nc3 {[%emt 0:02:11]} Bg7 {[%emt 0:00:11]} 9. Be2 {[%emt 0:01:07]} O-O {[%emt 0:00:16]} 10. O-O {[%emt 0:00:18]} Nd7 {[%emt 0:02:29]} 11. Rb1 {[%emt 0:00:57]} Qb6 {[%emt 0:02:14]} 12. Nd5 {[%emt 0:05:00]} Qxe3 {[%emt 0:05:05]} 13. Bxe3 {[%emt 0:00:04]} Rb8 {[%emt 0:00:39]} 14. b4 {[%emt 0:03:40]} Nf6 {[%emt 0:06:09]} 15. Bd3 {[%emt 0:20:54]} b5 {[%emt 0:14:40]} 16. cxb5 {[%emt 0:16:45]} axb5 {[%emt 0:01:31]} 17. Nd4 {[%emt 0:01:50]} Ne5 {[%emt 0:09:31]} 18. Nxf6+ {[%emt 0:04:21]} Bxf6 {[%emt 0:04:00]} 19. Bxb5 {[%emt 0:01:20]} Bb7 {[%emt 0:03:11]} 20. f3 {[%emt 0:05:08]} d5 {[%emt 0:00:38]} 21. exd5 {[%emt 0:07:46]} Bxd5 {[%emt 0:00:07]} 22. a4 {[%emt 0:00:26]} Bc4 {[%emt 0:13:40]} 23. Rfd1 {[%emt 0:05:32]} Bxb5 {[%emt 0:01:30]} 24. Nxb5 {[%emt 0:00:30]} Nc4 {[%emt 0:00:05]} 25. Bc5 {[%emt 0:01:51]} Rb7 {[%emt 0:02:30]} 26. Nd4 {[%emt 0:03:13]} Rc8 {[%emt 0:01:29]} 27. Rdc1 {[%emt 0:05:56]} Nd2 {[%emt 0:01:15]} 28. Nb3 {[%emt 0:01:41]} Nxb3 {[%emt 0:01:17]} 0-1

[Event "Go-Makkah Chess Festival 2019"]
[Site "Sousse"]
[Date "2019.09.08"]
[Round "9.9"]
[White "Boulaares, Adam"]
[Black "Ben Ghanem, Hamed"]
[Result "1/2-1/2"]
[ECO "B07"]
[WhiteElo "1730"]
[BlackElo "2064"]
[Annotator "NA"]
[PlyCount "67"]
[EventDate "2019.09.02"]
[EventType "swiss"]
[EventCountry "TUN"]
[SourceTitle "playchess.com"]
[Source "ChessBase"]
[SourceQuality "1"]
[TimeControl "5400+30"]

1. e4 {[%emt 0:00:00]} d6 {[%emt 0:02:57]} 2. d4 {[%emt 0:00:18]} Nf6 {[%emt 0:00:11]} 3. Nc3 {[%emt 0:00:07]} Nbd7 {[%emt 0:00:21]} 4. Be3 {[%emt 0:01:26]} e5 {[%emt 0:01:16]} 5. Qd2 {[%emt 0:02:10]} Be7 {[%emt 0:00:35]} 6. g3 {[%emt 0:01:37]} Ng4 {[%emt 0:00:33]} 7. Bg2 {[%emt 0:04:37]} c6 {[%emt 0:02:30]} 8. Nge2 {[%emt 0:01:45]} Nxe3 {[%emt 1:25:37]} 9. Qxe3 {[%emt 1:22:30]} Qc7 {[%emt 0:03:25]} 10. O-O {[%emt 1:22:43]} O-O {[%emt 0:01:41]} 11. d5 {[%emt 0:02:01]} Qb6 {[%emt 0:04:14]} 12. Qxb6 {[%emt 0:03:04]} Nxb6 {[%emt 0:01:56]} 13. Rad1 {[%emt 0:02:37]} c5 {[%emt 0:03:56]} 14. b3 {[%emt 0:06:22]} f5 {[%emt 0:01:31]} 15. f4 {[%emt 0:10:31]} exf4 {[%emt 0:17:01]} 16. Nxf4 {[%emt 0:01:37]} fxe4 {[%emt 0:15:04]} 17. Nxe4 {[%emt 0:01:47]} Bf5 {[%emt 0:01:34]} 18. c4 {[%emt 0:06:58]} Bxe4 {[%emt 0:03:21]} 19. Bxe4 {[%emt 0:00:09]} Nd7 {[%emt 0:01:15]} 20. Ne6 {[%emt 0:04:48]} Rxf1+ {[%emt 0:02:53]} 21. Rxf1 {[%emt 0:00:00]} Ne5 {[%emt 0:02:55]} 22. a3 {[%emt 0:00:00]} a6 {[%emt 0:01:49]} 23. a4 {[%emt 0:00:00]} Bf6 {[%emt 0:01:06]} 24. h3 {[%emt 0:00:00]} Rb8 {[%emt 0:08:44]} 25. a5 {[%emt 0:00:00]} b6 {[%emt 0:01:28]} 26. axb6 {[%emt 0:00:00]} Rxb6 {[%emt 0:00:05]} 27. Bc2 {[%emt 0:00:00]} h6 {[%emt 0:01:41]} 28. Kg2 {[%emt 0:00:00]} a5 {[%emt 0:00:39]} 29. Nc7 {[%emt 0:00:00]} Kf7 {[%emt 0:02:08]} 30. Nb5 {[%emt 0:00:00]} a4 {[%emt 0:01:16]} 31. Rf4 {[%emt 0:00:00]} axb3 {[%emt 0:00:42]} 32. Bxb3 {[%emt 0:00:00]} Ke7 {[%emt 0:00:17]} 33. Rf2 {[%emt 0:06:30]} Ra6 {[%emt 0:00:35]} 34. Rf1 {[%emt 0:00:00]} 1/2-1/2